fUST/lending_fUST_20260114
["ID","MTS","AMOUNT","RATE_DAILY","PERIOD"]
[401748213,1768358359962,581.0,0.00029726,120]
[401748214,1768358360279,581.0,0.00029863,120]
[401748215,1768358360329,581.0,0.0003,120]
[401748216,1768358360420,581.0,0.00030137,120]
[401748217,1768358362754,152.35030431,0.00030137,120]
[401748218,1768358367218,2334.82575586,0.00011679,2]
[401748219,1768358367243,10000.01,0.00011679,2]
[401748220,1768358367267,10000.01,0.00011679,2]
[401748221,1768358367290,10000.01,0.00011679,2]
[401748222,1768358367314,10000.01,0.00011679,2]
[401748223,1768358367337,10000.01,0.00011679,2]
[401748224,1768358367361,10000.01,0.00011679,2]
[401748225,1768358367386,10000.01,0.00011679,2]
[401748226,1768358367409,10000.01,0.00011679,2]
[401748227,1768358367432,10000.01,0.00011679,2]
[401748228,1768358457100,1501.834117,0.00011095,2]
[401748229,1768358496824,2534.225512,0.00010959,2]
[401748231,1768358670000,3172.76318535,0.00010859,2]
[401748241,1768359028609,500.0,0.00029863,120]
[401748242,1768359029036,500.0,0.0003,120]
[401748243,1768359029215,500.0,0.00030137,120]
[401748250,1768359032091,-373.40807803,0.00011431,2]
[401748251,1768359032144,-207.59192197,0.00011431,2]
[401748253,1768359032154,-468.00854229,0.00011431,2]
[401748255,1768359032165,-502.02575979,0.00011627,2]
[401748257,1768359032175,-300.0,0.00011671,2]
[401748259,1768359032184,-1957.856,0.00011672,2]
[401748261,1768359032193,-461.67526834,0.00011672,2]
[401748263,1768359032202,-2230.315306,0.00011672,2]
[401748265,1768359032211,-11195.19269949,0.00011678,2]
[401748267,1768359032221,-500.0,0.00011678,2]
[401748269,1768359032231,-500.0,0.00011678,2]
[401748271,1768359032241,-268.81785754,0.00011678,2]
[401748273,1768359032250,-500.0,0.00011678,2]
[401748274,1768359032259,-500.0,0.00011678,2]
[401748275,1768359032268,-248.75193213,0.00011678,2]
[401748291,1768359038101,-251.24806787,0.00011678,2]
[401748292,1768359038117,-500.0,0.00011678,2]
[401748293,1768359038126,-500.0,0.00011678,2]
[401748294,1768359038136,-500.0,0.00011678,2]
[401748295,1768359038146,-500.0,0.00011678,2]
[401748296,1768359038154,-500.0,0.00011678,2]
[401748297,1768359038164,-409.80227499,0.00011678,2]
[401748298,1768359038189,-90.19772501,0.00011678,2]
[401748299,1768359038205,-500.0,0.00011678,2]
[401748300,1768359038215,-517.43758509,0.00011678,2]
[401748301,1768359038225,-500.0,0.00011678,2]
[401748302,1768359038234,-401.85549258,0.00011678,2]
[401748878,1768359045922,-48.14450742,0.00011678,2]
[401748880,1768359045933,-500.0,0.00011678,2]
[401748882,1768359045942,-253.11498346,0.00011678,2]
[401748884,1768359045951,-2656.30416889,0.00011679,2]
[401748888,1768359045976,-21244.77637283,0.00011679,2]
[401748890,1768359045987,-208003.94266082,0.00011679,2]
[401748908,1768359046141,-7346.93174158,0.00011679,2]
[401748910,1768359046152,-2442.04648333,0.00011679,2]
[401748970,1768359046787,-727.75638663,0.00011679,2]
[401751348,1768359080087,238.70142,0.00030136,120]
[401751349,1768359121448,161.7,0.00030037,120]
[401751350,1768359123333,161.7,0.00030037,120]
[401751351,1768359125271,161.7,0.00030037,120]
[401751352,1768359127263,161.7,0.00030037,120]
[401751353,1768359188251,322.63,0.00030136,120]
[401751355,1768359316019,2791.18718565,0.00010677,2]
[401751356,1768359316043,9178.24089685,0.00010677,2]
[401751357,1768359346405,176.83,7.782e-05,2]
[401751358,1768359346814,206.31,8.081e-05,2]
[401751359,1768359347210,235.78,8.38e-05,2]
[401751360,1768359347602,202.84910315,8.68e-05,2]
[401751361,1768359347624,62.40089685,8.68e-05,2]
[401751362,1768359348061,294.72,8.979e-05,2]
[401751363,1768359600418,-300.0,0.00011379,2]
[401751364,1768359600439,-700.0,0.0001138,2]
[401751365,1768359603360,-300.0,0.00011379,2]
[401751366,1768359603381,-700.0,0.0001138,2]
[401751367,1768359604082,-442.70033633,0.0001138,2]
[401751368,1768359604103,-557.29966367,0.0001138,2]
[401751369,1768359604407,-1000.0,0.0001138,2]
[401751370,1768359604745,-1000.0,0.0001138,2]
[401751371,1768359605065,-1000.0,0.0001138,2]
[401751372,1768359605403,-584.63001732,0.0001138,2]
[401751373,1768359605425,-178.229,0.00011445,2]
[401751374,1768359605447,-237.14098268,0.00011445,2]
[401751375,1768359605736,-237.63582431,0.00011445,2]
[401751376,1768359605757,-178.33207433,0.00011445,2]
[401751377,1768359605787,580.0,0.0001138,2]
[401751378,1768359618247,-1000.0,0.00010664,2]
[401751379,1768359622897,-941.27737052,0.00010664,2]
[401751380,1768359625748,-426.47224628,0.00010664,2]
[401751381,1768359628831,-6851.7019175,0.00010664,2]
[401751382,1768359628897,-10000.01,0.00010664,2]
[401751383,1768359630935,-10000.01,0.00010664,2]
[401751384,1768359631079,-10000.01,0.00010664,2]
[401751385,1768359631113,-371.27309417,0.00010664,2]
[401751386,1768359631360,-1004.0322,0.00010664,2]
[401751387,1768359633365,-196.51,0.00010664,2]
[401751388,1768359634152,-742.96753513,0.00010664,2]
[401751389,1768359637309,-1000.0,0.00011445,2]
[401751390,1768359638629,-1000.0,0.00011445,2]
[401751391,1768359639133,-1000.0,0.00011445,2]
[401751392,1768359639458,-1000.0,0.00011445,2]
[401751393,1768359639813,-1000.0,0.00011445,2]
[401751394,1768359640156,-1000.0,0.00011445,2]
[401751395,1768359640499,-1000.0,0.00011445,2]
[401751396,1768359640863,-1000.0,0.00011445,2]
[401751397,1768359642207,-1000.0,0.00011445,2]
[401751398,1768359643695,-1000.0,0.00011445,2]
[401751399,1768359644365,-1000.0,0.00011445,2]
[401751400,1768359644693,-1000.0,0.00011445,2]
[401751401,1768359645031,-1000.0,0.00011445,2]
[401751402,1768359645430,-1000.0,0.00011445,2]
[401751403,1768359645860,-1000.0,0.00011445,2]
[401751404,1768359646272,-1000.0,0.00011445,2]
[401751405,1768359647515,-1000.0,0.00011445,2]
[401751406,1768359648057,-1000.0,0.00011445,2]
[401751407,1768359649692,-1000.0,0.00011445,2]
[401751408,1768359650304,500.0,0.00030136,120]
[401751409,1768359650546,499.0,0.00030136,120]
[401751410,1768359650621,-1000.0,0.00011445,2]
[401751411,1768359651783,-1000.0,0.00011445,2]
[401751412,1768359652950,-1000.0,0.00011445,2]
[401751413,1768359653707,-1000.0,0.00011445,2]
[401751414,1768359654668,-1000.0,0.00011445,2]
[401751415,1768359655726,-1000.0,0.00011445,2]
[401751416,1768359656869,-1000.0,0.00011445,2]
[401751417,1768359660405,-1000.0,0.00011445,2]
[401751418,1768359661413,-1000.0,0.00011445,2]
[401751419,1768359673708,500.0,0.00029863,120]
[401751420,1768359673924,500.0,0.0003,120]
[401751421,1768359674100,500.0,0.00030137,120]
[401751422,1768359678504,-500.0,0.00011445,2]
[401751423,1768359702886,178.229,0.00011347,2]
[401751424,1768359744899,700.0,0.00030037,120]
[401751425,1768359745857,460.67508408,0.00010958,2]
[401751426,1768359819431,3029.55559719,0.00011341,2]
[401751430,1768359956323,-465.66012183,0.00011431,2]
[401751431,1768359956398,-5400.23007507,0.00011445,2]
[401751432,1768359956571,-4378.92753911,0.00011445,2]
[401751433,1768359956595,-1242.15492178,0.00011445,2]
[401751434,1768359956760,-1957.856,0.00011572,2]
[401751435,1768359956787,-461.67526834,0.00011572,2]
[401751436,1768359956814,-2230.315306,0.00011572,2]
[401751437,1768359956842,-329.04375715,0.00011572,2]
[401751438,1768359956904,-42.22933702,0.00011572,2]
[401751439,1768359956941,-300.0,0.00011577,2]
[401751440,1768359956986,-9400.01,0.00011578,2]
[401751441,1768359956999,-9425.28366199,0.00011578,2]
[401751442,1768359957009,-500.0,0.00011578,2]
[401751443,1768359957018,-74.72633801,0.00011578,2]
[401751444,1768359961931,-425.27366199,0.00011578,2]
[401751445,1768359961961,-279.37191866,0.00011578,2]
[401751446,1768359961994,-500.0,0.00011578,2]
[401751447,1768359962025,-500.0,0.00011578,2]
[401751448,1768359962056,-500.0,0.00011578,2]
[401751449,1768359962086,-500.0,0.00011578,2]
[401751450,1768359962113,-155.14116435,0.00011578,2]
[401751451,1768359962142,-500.0,0.00011578,2]
[401751452,1768359962171,-500.0,0.00011578,2]
[401751453,1768359962201,-500.0,0.00011578,2]
[401751454,1768359962230,-500.0,0.00011578,2]
[401751455,1768359962424,-280.43651,0.00011578,2]
[401751456,1768359965176,-300.0,0.00011577,2]
[401751457,1768359965206,-219.56349,0.00011578,2]
[401751458,1768359965236,-500.0,0.00011578,2]
[401751459,1768359965272,-500.0,0.00011578,2]
[401751460,1768359965303,-200.0,0.00011578,2]
[401751461,1768359965332,-500.0,0.00011578,2]
[401751462,1768359965492,-650.576118,0.00011578,2]
[401751463,1768359975335,713.97348946,0.00011578,2]
[401751470,1768360022619,300.0,0.00011578,2]
[401751478,1768360082664,300.0,0.00011578,2]
[401751479,1768360084378,167.26,8.238e-05,2]
[401751480,1768360084657,167.26,8.238e-05,2]
[401751481,1768360084927,167.25,8.238e-05,2]
[401751482,1768360142341,300.0,0.00011578,2]
[401751483,1768360202603,300.0,0.00011578,2]
[401751484,1768360210235,1843.98729454,0.00011579,2]
[401751485,1768360210260,113.86870546,0.00011579,2]
[401751486,1768360210868,461.67526834,0.00011579,2]
[401751487,1768360217212,-5164.7352422,0.00011579,2]
[401751488,1768360217263,-10000.01,0.00011579,2]
[401751489,1768360217410,-10000.01,0.00011579,2]
[401751490,1768360217542,-10000.01,0.00011579,2]
[401751491,1768360217647,-10000.01,0.00011579,2]
[401751492,1768360217784,-10000.01,0.00011579,2]
[401751493,1768360226213,-2230.315306,0.00011579,2]
[401751494,1768360229284,500.0,0.00011578,2]
[401751495,1768360229330,520.42848736,0.00011578,2]
[401751522,1768360232278,-985.05636249,0.00011579,2]
[401751523,1768360234057,-445.54528704,0.00011579,2]
[401751565,1768360238508,-11357.95933434,0.00011579,2]
[401751568,1768360238564,-82703.52182002,0.00011579,2]
[401751570,1768360238576,-794.18782177,0.00011579,2]
[401751683,1768360240948,-37.85656112,0.00011579,2]
[401752112,1768360244973,-337885.43064279,0.00011579,2]
[401752114,1768360244987,-20804.58879793,0.00011579,2]
[401752203,1768360245811,-2984.18676768,0.00011579,2]
[401752245,1768360246347,-3045.61048994,0.00011579,2]
[401753115,1768360262852,300.0,0.00011578,2]
[401753116,1768360274133,500.0,0.00029863,120]
[401753117,1768360274329,500.0,0.0003,120]
[401753118,1768360274549,500.0,0.00030137,120]
[401753119,1768360322532,300.0,0.00011578,2]
[401753120,1768360349808,338.09989336,0.0001119,2]
[401753122,1768360382544,300.0,0.00011578,2]
[401753123,1768360401974,392.24,0.000115,2]
[401753124,1768360422145,500.0,0.00030136,120]
[401753125,1768360422403,500.0,0.00030136,120]
[401753126,1768360422659,500.0,0.00030136,120]
[401753127,1768360422887,499.0,0.00030136,120]
[401753128,1768360427197,-474.45025131,0.00011579,2]
[401753129,1768360427227,-583.0,0.00011579,2]
[401753130,1768360427255,-2030.296672,0.00011634,2]
[401753131,1768360427283,-166.0,0.00011679,2]
[401753132,1768360427310,-166.0,0.00011679,2]
[401753133,1768360427337,-166.0,0.00011679,2]
[401753134,1768360427364,-369.4847338,0.00011679,2]
[401753135,1768360427390,-153.0,0.00011679,2]
[401753136,1768360427417,-153.0,0.00011679,2]
[401753137,1768360427445,-153.0,0.00011679,2]
[401753138,1768360427473,-151.26786879,0.00011679,2]
[401753139,1768360427501,-164.0,0.00011679,2]
[401753140,1768360427529,-164.0,0.00011679,2]
[401753141,1768360427557,-29.42142991,0.00011679,2]
[401753142,1768360427588,-154.16808838,0.00011679,2]
[401753143,1768360427616,-2105.41764886,0.00011689,2]
[401753144,1768360427642,-2183.31810187,0.00011744,2]
[401753145,1768360427670,-260.94822391,0.00011779,2]
[401753146,1768360427842,-1042.74910274,0.00011779,2]
[401753147,1768360427870,-670.80835195,0.00011779,2]
[401753148,1768360427897,-2264.10087164,0.00011799,2]
[401753149,1768360428368,-192.73289552,0.00011854,2]
[401753150,1768360429757,-10000.01,0.00011679,2]
[401753151,1768360432853,-10000.01,0.00011679,2]
[401753152,1768360432952,-10000.01,0.00011679,2]
[401753153,1768360436001,-3029.55559719,0.00011312,2]
[401753154,1768360450960,3940.89880562,0.00010924,2]
[401753155,1768360450980,10000.01,0.00010924,2]
[401753156,1768360450999,10000.01,0.00010924,2]
[401753157,1768360451021,9507.10695058,0.00010924,2]
[401753158,1768360514667,199.810284,0.00010959,2]
[401753159,1768360571406,-1200.0,0.00011678,2]
[401753160,1768360571434,-300.0,0.00011678,2]
[401753161,1768360571463,-300.0,0.00011678,2]
[401753162,1768360573980,-2752.2039598,0.00011679,2]
[401753163,1768360574031,-10000.01,0.00011679,2]
[401753164,1768360577056,-2752.2539598,0.00011679,2]
[401753165,1768360577079,-4495.5020804,0.00011679,2]
[401753166,1768360577184,-500.0,0.00011853,2]
[401753167,1768360577214,-181.27275558,0.00011853,2]
[401753168,1768360577243,-324.70578866,0.00011853,2]
[401753169,1768360577271,-500.0,0.00011853,2]
[401753170,1768360577300,-500.0,0.00011853,2]
[401753171,1768360577329,-500.0,0.00011853,2]
[401753172,1768360577358,-169.27596462,0.00011853,2]
[401753173,1768360577387,-529.36191254,0.00011853,2]
[401753174,1768360577529,-3590.7771572,0.00011864,2]
[401753175,1768360580050,-10000.01,0.00011864,2]
[401753176,1768360580171,-10000.01,0.00011864,2]
[401753177,1768360664315,1636.5761365,0.00010924,2]
[401753232,1768360838617,190.0417615,0.00010743,2]
[401753237,1768360899598,500.0,0.00029863,120]
[401753238,1768360900062,500.0,0.0003,120]
[401753239,1768360900225,500.0,0.00030137,120]
[401753243,1768361038449,-207.63554956,0.00011479,2]
[401753244,1768361038476,-581.0,0.00011479,2]
[401753245,1768361038503,-800.0,0.00011499,2]
[401753246,1768361038529,-491.79784799,0.00011544,2]
[401753247,1768361038556,-300.0,0.00011606,2]
[401753248,1768361038585,-500.0,0.00011607,2]
[401753249,1768361038613,-500.0,0.00011607,2]
[401753250,1768361038641,-500.0,0.00011607,2]
[401753251,1768361038670,-500.0,0.00011607,2]
[401753252,1768361038698,-500.0,0.00011607,2]
[401753253,1768361038921,-500.0,0.00011607,2]
[401753254,1768361038948,-500.0,0.00011607,2]
[401753255,1768361038974,-500.0,0.00011607,2]
[401753256,1768361039001,-500.0,0.00011607,2]
[401753257,1768361039029,-500.0,0.00011607,2]
[401753258,1768361039056,-500.0,0.00011607,2]
[401753259,1768361039083,-500.0,0.00011607,2]
[401753260,1768361039110,-500.0,0.00011607,2]
[401753261,1768361039137,-500.0,0.00011607,2]
[401753262,1768361039163,-500.0,0.00011607,2]
[401753263,1768361039242,-500.0,0.00011607,2]
[401753264,1768361039269,-500.0,0.00011607,2]
[401753265,1768361039425,-500.0,0.00011607,2]
[401753266,1768361039456,-500.0,0.00011607,2]
[401753267,1768361039487,-443.56516635,0.00011607,2]
[401753268,1768361039516,-500.0,0.00011607,2]
[401753269,1768361039546,-500.0,0.00011607,2]
[401753270,1768361039576,-500.0,0.00011607,2]
[401753271,1768361039607,-500.0,0.00011607,2]
[401753272,1768361039636,-500.0,0.00011607,2]
[401753273,1768361041252,-491.79784799,0.00011479,2]
[401753274,1768361041282,-500.0,0.00011607,2]
[401753275,1768361041309,-500.0,0.00011607,2]
[401753276,1768361041339,-500.0,0.00011607,2]
[401753277,1768361041366,-500.0,0.00011607,2]
[401753278,1768361041394,-500.0,0.00011607,2]
[401753279,1768361041421,-500.0,0.00011607,2]
[401753280,1768361041449,-500.0,0.00011607,2]
[401753281,1768361041477,-500.0,0.00011607,2]
[401753282,1768361041505,-500.0,0.00011607,2]
[401753283,1768361047375,-300.0,0.00011606,2]
[401753284,1768361047405,-500.0,0.00011607,2]
[401753285,1768361047434,-500.0,0.00011607,2]
[401753286,1768361047466,-500.0,0.00011607,2]
[401753287,1768361047520,-500.0,0.00011607,2]
[401753288,1768361047552,-474.23189681,0.00011607,2]
[401753289,1768361047597,-500.0,0.00011607,2]
[401753290,1768361047626,-500.0,0.00011607,2]
[401753291,1768361047655,-500.0,0.00011607,2]
[401753292,1768361047835,-500.0,0.00011607,2]
[401753293,1768361048235,-570.15814722,0.00011607,2]
[401753294,1768361048269,-570.15814722,0.00011607,2]
[401753295,1768361048301,-570.15814722,0.00011607,2]
[401753296,1768361048331,-570.15814722,0.00011607,2]
[401753297,1768361048361,-570.15814722,0.00011607,2]
[401753298,1768361048390,-570.15814722,0.00011607,2]
[401753299,1768361048420,-570.15814722,0.00011607,2]
[401753300,1768361048453,-570.15814722,0.00011607,2]
[401753301,1768361048484,-307.32149726,0.00011607,2]
[401753302,1768361048572,-262.83664996,0.00011607,2]
[401753303,1768361048605,-570.15814722,0.00011607,2]
[401753304,1768361048635,-570.15814722,0.00011607,2]
[401753305,1768361048666,-570.15814722,0.00011607,2]
[401753306,1768361048695,-570.15814722,0.00011607,2]
[401753307,1768361048725,-570.15814722,0.00011607,2]
[401753308,1768361048756,-570.15814722,0.00011607,2]
[401753309,1768361048785,-570.15814722,0.00011607,2]
[401753310,1768361048815,-570.15814722,0.00011607,2]
[401753311,1768361119389,1509.0,0.00011347,2]
[401753312,1768361126828,-3029.55559719,0.00011556,2]
[401753313,1768361126858,-300.0,0.00011606,2]
[401753314,1768361126887,-1200.0,0.00011606,2]
[401753315,1768361126917,-370.7406584,0.00011607,2]
[401753316,1768361127042,-199.41748882,0.00011607,2]
[401753317,1768361127073,-570.15814722,0.00011607,2]
[401753318,1768361127102,-570.15814722,0.00011607,2]
[401753319,1768361127131,-570.15814722,0.00011607,2]
[401753320,1768361127160,-570.15814722,0.00011607,2]
[401753321,1768361127193,-570.15814722,0.00011607,2]
[401753322,1768361127224,-570.15814722,0.00011607,2]
[401753323,1768361127259,-570.15814722,0.00011607,2]
[401753324,1768361127291,-570.15814722,0.00011607,2]
[401753325,1768361129706,-570.15814722,0.00011607,2]
[401753326,1768361129739,-570.15814722,0.00011607,2]
[401753327,1768361129771,-570.15814722,0.00011607,2]
[401753328,1768361129802,-570.15814722,0.00011607,2]
[401753329,1768361129833,-570.15814722,0.00011607,2]
[401753330,1768361129865,-570.15814722,0.00011607,2]
[401753331,1768361129896,-570.15814722,0.00011607,2]
[401753332,1768361129926,-570.15814722,0.00011607,2]
[401753333,1768361129958,-307.32149726,0.00011607,2]
[401753334,1768361132818,-262.83664996,0.00011607,2]
[401753335,1768361132848,-570.15814722,0.00011607,2]
[401753336,1768361132878,-570.15814722,0.00011607,2]
[401753337,1768361132908,-570.15814722,0.00011607,2]
[401753338,1768361132936,-570.15814722,0.00011607,2]
[401753339,1768361132965,-570.15814722,0.00011607,2]
[401753340,1768361132994,-570.15814722,0.00011607,2]
[401753341,1768361133023,-570.15814722,0.00011607,2]
[401753342,1768361133052,-570.15814722,0.00011607,2]
[401753343,1768361133157,-570.15814722,0.00011607,2]
[401753344,1768361133188,-570.15814722,0.00011607,2]
[401753345,1768361133219,-570.15814722,0.00011607,2]
[401753346,1768361133248,-570.15814722,0.00011607,2]
[401753347,1768361133282,-570.15814722,0.00011607,2]
[401753348,1768361133313,-570.15814722,0.00011607,2]
[401753349,1768361133344,-570.15814722,0.00011607,2]
[401753350,1768361133374,-570.15814722,0.00011607,2]
[401753351,1768361133405,-307.32149726,0.00011607,2]
[401753353,1768361135811,-262.83664996,0.00011607,2]
[401753354,1768361135842,-570.15814722,0.00011607,2]
[401753355,1768361135871,-570.15814722,0.00011607,2]
[401753356,1768361135902,-570.15814722,0.00011607,2]
[401753357,1768361135936,-570.15814722,0.00011607,2]
[401753358,1768361135968,-570.15814722,0.00011607,2]
[401753359,1768361135997,-570.15814722,0.00011607,2]
[401753360,1768361136028,-570.15814722,0.00011607,2]
[401753361,1768361136059,-548.30208491,0.00011607,2]
[401753362,1768361136227,-257.09038986,0.00011607,2]
[401753367,1768361352572,-800.0,0.00011353,2]
[401753372,1768361413654,-1200.0,0.00011607,2]
[401753373,1768361413684,-583.0,0.00011607,2]
[401753374,1768361413712,-472.12593407,0.00011607,2]
[401753375,1768361413741,-1753.44129403,0.00011607,2]
[401753376,1768361413773,-500.0,0.00011608,2]
[401753377,1768361413804,-482.8755438,0.00011608,2]
[401753378,1768361413909,-17.1244562,0.00011608,2]
[401753379,1768361413944,-500.0,0.00011608,2]
[401753380,1768361413971,-500.0,0.00011608,2]
[401753381,1768361413998,-500.0,0.00011608,2]
[401753382,1768361414025,-500.0,0.00011608,2]
[401753383,1768361414053,-500.0,0.00011608,2]
[401753384,1768361414082,-500.0,0.00011608,2]
[401753385,1768361414111,-500.0,0.00011608,2]
[401753386,1768361414142,-500.0,0.00011608,2]
[401753387,1768361414171,-500.0,0.00011608,2]
[401753388,1768361414199,-253.07909829,0.00011608,2]
[401753389,1768361414414,-493.85180342,0.00011608,2]
[401753390,1768361416668,-6.14819658,0.00011608,2]
[401753391,1768361416697,-500.0,0.00011608,2]
[401753392,1768361416725,-500.0,0.00011608,2]
[401753393,1768361416753,-500.0,0.00011608,2]
[401753394,1768361416782,-500.0,0.00011608,2]
[401753395,1768361416810,-500.0,0.00011608,2]
[401753396,1768361416838,-500.0,0.00011608,2]
[401753397,1768361416866,-500.0,0.00011608,2]
[401753398,1768361416893,-500.0,0.00011608,2]
[401753399,1768361416920,-500.0,0.00011608,2]
[401753400,1768361416949,-487.71360684,0.00011608,2]
[401753401,1768361416985,-12.28639316,0.00011608,2]
[401753402,1768361417016,-500.0,0.00011608,2]
[401753403,1768361417047,-645.44906734,0.00011608,2]
[401753404,1768361417077,-500.0,0.00011608,2]
[401753405,1768361417106,-500.0,0.00011608,2]
[401753406,1768361417134,-500.0,0.00011608,2]
[401753407,1768361417162,-500.0,0.00011608,2]
[401753408,1768361417189,-500.0,0.00011608,2]
[401753409,1768361417216,-500.0,0.00011608,2]
[401753410,1768361417243,-500.0,0.00011608,2]
[401753411,1768361417270,-184.539079,0.00011608,2]
[401753412,1768361417746,-315.460921,0.00011608,2]
[401753413,1768361417755,-12.28639316,0.00011608,2]
[401753414,1768361419620,-10000.01,0.00011607,2]
[401753415,1768361422767,-1685.21029219,0.00011607,2]
[401753416,1768361422790,-6629.58941562,0.00011607,2]
[401753417,1768361425767,-487.71360684,0.00011608,2]
[401753418,1768361425796,-500.0,0.00011608,2]
[401753419,1768361425825,-500.0,0.00011608,2]
[401753420,1768361425854,-500.0,0.00011608,2]
[401753421,1768361425883,-500.0,0.00011608,2]
[401753422,1768361425911,-500.0,0.00011608,2]
[401753423,1768361425939,-500.0,0.00011608,2]
[401753424,1768361426073,-3024.58278632,0.00011609,2]
[401753425,1768361426098,-10000.01,0.00011609,2]
[401753426,1768361426112,-10000.01,0.00011609,2]
[401753427,1768361431832,-499.99999999,0.00011608,2]
[401753428,1768361431866,-9000.01000002,0.00011609,2]
[401753429,1768361431929,-1370.71309194,0.00011609,2]
[401753430,1768361431951,-7258.58381612,0.00011609,2]
[401753431,1768361432090,-3151.4948885,0.00011609,2]
[401753463,1768361432482,-933.0,0.00011779,2]
[401753505,1768361440785,-394.00938222,0.00011779,2]
[401753953,1768361444989,-1353.54079218,0.00011779,2]
[401753955,1768361444999,-418.26117454,0.00011779,2]
[401753957,1768361445008,-5133.1561894,0.00011792,2]
[401753959,1768361445017,-461.67526834,0.00011857,2]
[401753961,1768361445027,-1957.856,0.00011857,2]
[401753963,1768361445037,-2230.315306,0.00011857,2]
[401753965,1768361445046,-349.58505724,0.00011863,2]
[401753967,1768361445056,-500.0,0.00011863,2]
[401753969,1768361445065,-500.0,0.00011863,2]
[401753971,1768361445075,-500.0,0.00011863,2]
[401753973,1768361445084,-500.0,0.00011863,2]
[401753975,1768361445093,-500.0,0.00011863,2]
[401753977,1768361445102,-500.0,0.00011863,2]
[401753979,1768361445112,-500.0,0.00011863,2]
[401753981,1768361445121,-500.0,0.00011863,2]
[401753983,1768361445130,-500.0,0.00011863,2]
[401753985,1768361445139,-500.0,0.00011863,2]
[401753987,1768361445148,-500.0,0.00011863,2]
[401753989,1768361445158,-429.80384499,0.00011863,2]
[401753991,1768361445167,-500.0,0.00011863,2]
[401753993,1768361445176,-500.0,0.00011863,2]
[401753995,1768361445185,-35807.75848522,0.00011864,2]
[401753997,1768361445197,-4600.14592103,0.00011864,2]
[401753999,1768361445208,-138918.07226067,0.00011864,2]
[401754060,1768361445785,-3253.26333759,0.00011864,2]
[401754127,1768361446611,-375.44797495,0.00011864,2]
[401755648,1768361461532,169.0,0.000301,120]
[401756161,1768361496652,-378.49067879,0.00011778,2]
[401756162,1768361500077,-121.50932121,0.00011778,2]
[401756163,1768361500099,-233.89628774,0.00011778,2]
[401756164,1768361502060,-240.00570559,0.00011778,2]
[401756165,1768361503598,-155.47003328,0.00011627,2]
[401756166,1768361505293,-24.35496672,0.00011627,2]
[401756167,1768361505316,-26.09800667,0.00011778,2]
[401756168,1768361505338,-254.52789115,0.00011778,2]
[401756169,1768361506881,-106.92534199,0.00011778,2]
[401756170,1768361506903,-112.46029085,0.00011778,2]
[401756171,1768361510214,-153.3491535,0.00011778,2]
[401756174,1768361539238,500.0,0.00029863,120]
[401756175,1768361539395,500.0,0.0003,120]
[401756176,1768361539547,557.03988032,0.00030137,120]
[401756177,1768361571523,-224.35942418,0.00011679,2]
[401756178,1768361573140,-173.51716562,0.00011679,2]
[401756179,1768361575572,-203.95,0.00011679,2]
[401756180,1768361577695,-169.96,0.00011679,2]
[401756181,1768361579191,-258.71047382,0.00011679,2]
[401756182,1768361581486,-253.24859106,0.00011679,2]
[401756183,1768361583159,-240.97468499,0.00011679,2]
[401756184,1768361586641,-148.32435848,0.00011679,2]
[401756185,1768361586662,-106.31600713,0.00011779,2]
[401756186,1768361588769,-330.0582376,0.00011779,2]
[401756187,1768361590264,-442.94323711,0.00011779,2]
[401756188,1768361592475,-315.29737132,0.00011779,2]
[401756189,1768361594087,-163.04901972,0.00011509,2]